[Event "Titled Tuesday Blitz November 07 Late 2023"]
[White "Fiorito, Francisco"]
[Black "Leitao, Rafael"]
[WhiteFideId "180165"]
[BlackFideId "2101246"]
[WhiteElo "2620"]
[BlackElo "2797"]
[Result "1-0"]
[Round "9"]
[TimeControl "180+1"]
[Date "2023.11.07"]
[WhiteClock "0:00:21"]
[BlackClock "0:00:06"]
[Board "20"]

1. Nf3 {[%clk 0:03:00]}  Nf6 {[%clk 0:02:46]} 2. g3 {[%clk 0:03:00]}  g6 {[%clk 0:02:45]} 3. b3 {[%clk 0:03:00]}  Bg7 {[%clk 0:02:44]} 4. Bb2 {[%clk 0:03:01]}  d6 {[%clk 0:02:43]} 5. d4 {[%clk 0:02:53]}  c5 {[%clk 0:02:42]} 6. Bg2 {[%clk 0:02:49]}  cxd4 {[%clk 0:02:41]} 7. Nxd4 {[%clk 0:02:50]}  O-O {[%clk 0:02:42]} 8. O-O {[%clk 0:02:50]}  d5 {[%clk 0:02:43]} 9. Nf3 {[%clk 0:02:44]}  Nc6 {[%clk 0:02:41]} 10. Nbd2 {[%clk 0:02:42]}  Bf5 {[%clk 0:02:37]} 11. c4 {[%clk 0:02:42]}  d4 {[%clk 0:02:31]} 12. b4 {[%clk 0:02:42]}  d3 {[%clk 0:02:08]} 13. Qb3 {[%clk 0:01:22]}  dxe2 {[%clk 0:01:57]} 14. Rfe1 {[%clk 0:01:22]}  Bd3 {[%clk 0:01:28]} 15. b5 {[%clk 0:01:10]}  Na5 {[%clk 0:01:27]} 16. Qa4 {[%clk 0:01:09]}  Ng4 {[%clk 0:01:15]} 17. Bxg7 {[%clk 0:01:04]}  Kxg7 {[%clk 0:01:16]} 18. h3 {[%clk 0:00:50]}  Nf6 {[%clk 0:00:55]} 19. Ne5 {[%clk 0:00:50]}  Rc8 {[%clk 0:00:44]} 20. Nxd3 {[%clk 0:00:47]}  Qxd3 {[%clk 0:00:39]} 21. Qxa5 {[%clk 0:00:47]}  b6 {[%clk 0:00:39]} 22. Qb4 {[%clk 0:00:46]}  Rfd8 {[%clk 0:00:39]} 23. Nf3 {[%clk 0:00:38]}  Rc5 {[%clk 0:00:27]} 24. Qb2 {[%clk 0:00:35]}  Qxc4 {[%clk 0:00:22]} 25. Qxe2 {[%clk 0:00:34]}  Qxe2 {[%clk 0:00:21]} 26. Rxe2 {[%clk 0:00:35]}  e6 {[%clk 0:00:22]} 27. a4 {[%clk 0:00:35]}  Nd5 {[%clk 0:00:21]} 28. Rd2 {[%clk 0:00:34]}  Rdc8 {[%clk 0:00:21]} 29. Nd4 {[%clk 0:00:32]}  Rc4 {[%clk 0:00:19]} 30. Nc6 {[%clk 0:00:32]}  Nc3 {[%clk 0:00:19]} 31. Nxa7 {[%clk 0:00:25]}  R8c7 {[%clk 0:00:17]} 32. Nc6 {[%clk 0:00:26]}  Nxa4 {[%clk 0:00:17]} 33. Bf1 {[%clk 0:00:24]}  Re4 {[%clk 0:00:12]} 34. f3 {[%clk 0:00:23]}  Re3 {[%clk 0:00:12]} 35. Rxa4 {[%clk 0:00:22]}  Rxf3 {[%clk 0:00:13]} 36. Kg2 {[%clk 0:00:21]}  Rc3 {[%clk 0:00:06]} 37. Rad4 {[%clk 0:00:21]} 1-0


[Site "https://www.chess.com"]

[Event "Titled Tuesday Blitz November 07 Late 2023"]
[White "Remolar Gallen, Jose"]
[Black "Pakleza, Zbigniew"]
[WhiteFideId "2215187"]
[BlackFideId "1119290"]
[WhiteElo "2539"]
[BlackElo "2723"]
[Result "0-1"]
[Round "9"]
[TimeControl "180+1"]
[Date "2023.11.07"]
[WhiteClock "0:00:33"]
[BlackClock "0:02:02"]
[Board "22"]

1. e4 {[%clk 0:03:00]}  d6 {[%clk 0:02:59]} 2. d4 {[%clk 0:03:00]}  Nf6 {[%clk 0:03:00]} 3. Nc3 {[%clk 0:03:01]}  c6 {[%clk 0:03:00]} 4. f4 {[%clk 0:02:59]}  Qb6 {[%clk 0:03:01]} 5. Nf3 {[%clk 0:02:58]}  Bg4 {[%clk 0:03:00]} 6. Be2 {[%clk 0:02:56]}  Bxf3 {[%clk 0:03:00]} 7. Bxf3 {[%clk 0:02:56]}  e5 {[%clk 0:03:01]} 8. fxe5 {[%clk 0:02:18]}  dxe5 {[%clk 0:03:01]} 9. dxe5 {[%clk 0:02:19]}  Nfd7 {[%clk 0:03:01]} 10. e6 {[%clk 0:02:17]}  fxe6 {[%clk 0:03:02]} 11. Qe2 {[%clk 0:02:11]}  Ne5 {[%clk 0:03:02]} 12. Bd2 {[%clk 0:01:34]}  Qxb2 {[%clk 0:02:58]} 13. O-O {[%clk 0:01:33]}  Qxc2 {[%clk 0:02:50]} 14. Rab1 {[%clk 0:01:27]}  b6 {[%clk 0:02:21]} 15. Bh5+ {[%clk 0:00:54]}  g6 {[%clk 0:02:19]} 16. Rfc1 {[%clk 0:00:50]}  Qd3 {[%clk 0:02:14]} 17. Bf4 {[%clk 0:00:50]}  Nbd7 {[%clk 0:02:06]} 18. Qf2 {[%clk 0:00:33]}  Bc5 {[%clk 0:02:02]} 0-1


[Site "https://www.chess.com"]

[Event "Titled Tuesday Blitz November 07 Late 2023"]
[White "Awoki, Daniel Teidi"]
[Black "Mladenovic, Stefan"]
[WhiteFideId "2100827"]
[BlackFideId "942227"]
[WhiteElo "2347"]
[BlackElo "2677"]
[Result "0-1"]
[Round "9"]
[TimeControl "180+1"]
[Date "2023.11.07"]
[WhiteClock "0:00:11"]
[BlackClock "0:01:39"]
[Board "24"]

1. e4 {[%clk 0:03:00]}  c5 {[%clk 0:02:59]} 2. Nf3 {[%clk 0:03:01]}  d6 {[%clk 0:02:59]} 3. d4 {[%clk 0:03:01]}  cxd4 {[%clk 0:03:00]} 4. Nxd4 {[%clk 0:03:02]}  Nf6 {[%clk 0:03:01]} 5. Nc3 {[%clk 0:03:03]}  g6 {[%clk 0:03:02]} 6. Be3 {[%clk 0:03:03]}  Bg7 {[%clk 0:03:02]} 7. f3 {[%clk 0:03:03]}  O-O {[%clk 0:03:03]} 8. Qd2 {[%clk 0:03:03]}  Nc6 {[%clk 0:03:03]} 9. Bc4 {[%clk 0:03:04]}  Bd7 {[%clk 0:03:03]} 10. O-O-O {[%clk 0:03:04]}  Rb8 {[%clk 0:03:03]} 11. Bb3 {[%clk 0:03:05]}  Na5 {[%clk 0:03:03]} 12. h4 {[%clk 0:03:03]}  b5 {[%clk 0:03:03]} 13. g4 {[%clk 0:03:02]}  Nc4 {[%clk 0:03:03]} 14. Qd3 {[%clk 0:03:00]}  Nxe3 {[%clk 0:03:01]} 15. Qxe3 {[%clk 0:03:01]}  a5 {[%clk 0:02:56]} 16. a3 {[%clk 0:02:51]}  b4 {[%clk 0:02:55]} 17. axb4 {[%clk 0:02:49]}  axb4 {[%clk 0:02:56]} 18. Nd5 {[%clk 0:02:47]}  Nxd5 {[%clk 0:02:55]} 19. exd5 {[%clk 0:02:42]}  Qa5 {[%clk 0:02:51]} 20. Kd2 {[%clk 0:02:32]}  Qc5 {[%clk 0:02:43]} 21. Ke1 {[%clk 0:02:23]}  Bb5 {[%clk 0:02:21]} 22. Kf2 {[%clk 0:02:13]}  Bc4 {[%clk 0:02:21]} 23. Nc6 {[%clk 0:01:58]}  Qxe3+ {[%clk 0:02:14]} 24. Kxe3 {[%clk 0:01:59]}  Bxb3 {[%clk 0:02:14]} 25. cxb3 {[%clk 0:01:27]}  Rb7 {[%clk 0:02:12]} 26. Ra1 {[%clk 0:01:20]}  Bxb2 {[%clk 0:02:10]} 27. Ra4 {[%clk 0:01:19]}  Bc3 {[%clk 0:02:10]} 28. Kd3 {[%clk 0:01:11]}  e6 {[%clk 0:02:08]} 29. Rh2 {[%clk 0:00:43]}  exd5 {[%clk 0:02:04]} 30. Re2 {[%clk 0:00:43]}  Kg7 {[%clk 0:02:00]} 31. Ra5 {[%clk 0:00:33]}  Rc8 {[%clk 0:01:57]} 32. Ne7 {[%clk 0:00:30]}  Rc5 {[%clk 0:01:54]} 33. Ra8 {[%clk 0:00:27]}  Be5 {[%clk 0:01:42]} 34. f4 {[%clk 0:00:12]}  Rxe7 {[%clk 0:01:39]} 35. fxe5 {[%clk 0:00:12]}  dxe5 {[%clk 0:01:39]} 36. Rc8 {[%clk 0:00:11]} 0-1


[Site "https://www.chess.com"]

[Event "Titled Tuesday Blitz November 07 Late 2023"]
[White "mind1mover"]
[Black "Seemann, Jakub"]
[BlackFideId "21874697"]
[WhiteElo "2826"]
[BlackElo "2642"]
[Result "1-0"]
[Round "9"]
[TimeControl "180+1"]
[Date "2023.11.07"]
[WhiteClock "0:00:02"]
[BlackClock "0:00:00"]
[Board "26"]

1. Nf3 {[%clk 0:03:00]}  d5 {[%clk 0:02:59]} 2. b3 {[%clk 0:03:00]}  Nf6 {[%clk 0:02:59]} 3. Bb2 {[%clk 0:02:56]}  Bf5 {[%clk 0:03:00]} 4. g3 {[%clk 0:02:54]}  e6 {[%clk 0:03:00]} 5. c4 {[%clk 0:02:55]}  c6 {[%clk 0:03:00]} 6. Bg2 {[%clk 0:02:52]}  h6 {[%clk 0:03:00]} 7. O-O {[%clk 0:02:52]}  Nbd7 {[%clk 0:03:01]} 8. d3 {[%clk 0:02:53]}  Be7 {[%clk 0:03:00]} 9. Nbd2 {[%clk 0:02:53]}  O-O {[%clk 0:02:59]} 10. a3 {[%clk 0:02:54]}  a5 {[%clk 0:02:59]} 11. Ra2 {[%clk 0:02:54]}  Bh7 {[%clk 0:02:58]} 12. Qa1 {[%clk 0:02:55]}  Rc8 {[%clk 0:02:58]} 13. Rc1 {[%clk 0:02:51]}  Re8 {[%clk 0:02:57]} 14. h3 {[%clk 0:02:41]}  Bf8 {[%clk 0:02:58]} 15. Ne5 {[%clk 0:02:41]}  Nxe5 {[%clk 0:02:57]} 16. Bxe5 {[%clk 0:02:42]}  Nd7 {[%clk 0:02:57]} 17. Bc3 {[%clk 0:02:42]}  b6 {[%clk 0:02:41]} 18. b4 {[%clk 0:02:32]}  a4 {[%clk 0:02:37]} 19. Rac2 {[%clk 0:02:13]}  Nf6 {[%clk 0:02:28]} 20. Bxf6 {[%clk 0:02:04]}  gxf6 {[%clk 0:02:22]} 21. cxd5 {[%clk 0:02:05]}  exd5 {[%clk 0:02:23]} 22. Nf3 {[%clk 0:02:00]}  c5 {[%clk 0:02:19]} 23. Nh4 {[%clk 0:01:52]}  Qd6 {[%clk 0:01:52]} 24. Qa2 {[%clk 0:01:44]}  Red8 {[%clk 0:01:42]} 25. Bf3 {[%clk 0:01:26]}  Qe5 {[%clk 0:01:24]} 26. Ng2 {[%clk 0:01:02]}  Rc7 {[%clk 0:00:56]} 27. Ne3 {[%clk 0:00:47]}  Rcd7 {[%clk 0:00:51]} 28. bxc5 {[%clk 0:00:44]}  bxc5 {[%clk 0:00:52]} 29. Rxc5 {[%clk 0:00:41]}  Bxc5 {[%clk 0:00:51]} 30. Rxc5 {[%clk 0:00:42]}  Bg6 {[%clk 0:00:29]} 31. Kg2 {[%clk 0:00:33]}  Rc7 {[%clk 0:00:25]} 32. Ra5 {[%clk 0:00:25]}  Rb8 {[%clk 0:00:14]} 33. Nxd5 {[%clk 0:00:21]}  Rb2 {[%clk 0:00:14]} 34. Qa1 {[%clk 0:00:18]}  Rcb7 {[%clk 0:00:09]} 35. Rxa4 {[%clk 0:00:10]}  Bxd3 {[%clk 0:00:08]} 36. Nf4 {[%clk 0:00:03]}  Bf5 {[%clk 0:00:06]} 37. Bxb7 {[%clk 0:00:03]}  Qb5 {[%clk 0:00:03]} 38. Ra8+ {[%clk 0:00:02]}  Kg7 {[%clk 0:00:03]} 39. Bf3 {[%clk 0:00:03]}  Bc2 {[%clk 0:00:01]} 40. Nh5+ {[%clk 0:00:03]}  Kg6 {[%clk 0:00:01]} 41. Qc1 {[%clk 0:00:04]}  Rb1 {[%clk 0:00:00]} 42. Qf4 {[%clk 0:00:02]} 1-0


[Site "https://www.chess.com"]

[Event "Titled Tuesday Blitz November 07 Late 2023"]
[White "ArtemDyachuk"]
[Black "Krzyzanowski, Marcin"]
[BlackFideId "1132199"]
[WhiteElo "2629"]
[BlackElo "2759"]
[Result "0-1"]
[Round "9"]
[TimeControl "180+1"]
[Date "2023.11.07"]
[WhiteClock "0:00:07"]
[BlackClock "0:00:10"]
[Board "28"]

1. e4 {[%clk 0:03:00]}  e5 {[%clk 0:02:57]} 2. Nf3 {[%clk 0:02:58]}  Nc6 {[%clk 0:02:57]} 3. Bc4 {[%clk 0:02:50]}  Nf6 {[%clk 0:02:57]} 4. d3 {[%clk 0:02:46]}  h6 {[%clk 0:02:54]} 5. O-O {[%clk 0:02:44]}  d6 {[%clk 0:02:54]} 6. c3 {[%clk 0:02:43]}  g6 {[%clk 0:02:53]} 7. Nbd2 {[%clk 0:02:42]}  Bg7 {[%clk 0:02:53]} 8. Re1 {[%clk 0:02:40]}  O-O {[%clk 0:02:51]} 9. Nf1 {[%clk 0:02:39]}  Na5 {[%clk 0:02:48]} 10. Bb5 {[%clk 0:02:38]}  a6 {[%clk 0:02:48]} 11. Ba4 {[%clk 0:02:38]}  b5 {[%clk 0:02:49]} 12. Bc2 {[%clk 0:02:38]}  c5 {[%clk 0:02:47]} 13. Ng3 {[%clk 0:02:36]}  Re8 {[%clk 0:02:45]} 14. h3 {[%clk 0:02:31]}  Nc6 {[%clk 0:02:43]} 15. Be3 {[%clk 0:02:30]}  Bb7 {[%clk 0:02:29]} 16. Qd2 {[%clk 0:02:28]}  Kh7 {[%clk 0:02:29]} 17. Rad1 {[%clk 0:02:28]}  Rc8 {[%clk 0:02:28]} 18. d4 {[%clk 0:02:25]}  cxd4 {[%clk 0:02:23]} 19. cxd4 {[%clk 0:02:24]}  exd4 {[%clk 0:02:18]} 20. Nxd4 {[%clk 0:02:25]}  Ne5 {[%clk 0:02:18]} 21. b3 {[%clk 0:02:21]}  Nc6 {[%clk 0:01:55]} 22. Bb1 {[%clk 0:02:18]}  Nxd4 {[%clk 0:01:52]} 23. Bxd4 {[%clk 0:02:19]}  Qc7 {[%clk 0:01:47]} 24. Qb2 {[%clk 0:02:18]}  Re6 {[%clk 0:01:36]} 25. f4 {[%clk 0:02:07]}  Rce8 {[%clk 0:01:15]} 26. Kh2 {[%clk 0:01:58]}  h5 {[%clk 0:01:14]} 27. e5 {[%clk 0:01:56]}  dxe5 {[%clk 0:01:10]} 28. Bxe5 {[%clk 0:01:55]}  Qc6 {[%clk 0:01:09]} 29. Rc1 {[%clk 0:01:51]}  Qb6 {[%clk 0:01:01]} 30. Nf5 {[%clk 0:00:59]}  gxf5 {[%clk 0:00:40]} 31. Bxf5+ {[%clk 0:01:00]}  Kg8 {[%clk 0:00:39]} 32. Bxe6 {[%clk 0:00:59]}  Rxe6 {[%clk 0:00:39]} 33. Qd2 {[%clk 0:00:51]}  Ne4 {[%clk 0:00:28]} 34. Qe3 {[%clk 0:00:22]}  Qxe3 {[%clk 0:00:23]} 35. Rxe3 {[%clk 0:00:23]}  Rxe5 {[%clk 0:00:14]} 36. fxe5 {[%clk 0:00:24]}  Bxe5+ {[%clk 0:00:13]} 37. Kh1 {[%clk 0:00:13]}  Ng3+ {[%clk 0:00:11]} 38. Kg1 {[%clk 0:00:01]}  Bd4 {[%clk 0:00:11]} 39. Kf2 {[%clk 0:00:02]}  Nf5 {[%clk 0:00:12]} 40. Rc7 {[%clk 0:00:02]}  Bxe3+ {[%clk 0:00:11]} 41. Ke2 {[%clk 0:00:02]}  Bxg2 {[%clk 0:00:10]} 42. Rc5 {[%clk 0:00:01]}  Bxc5 {[%clk 0:00:10]} 43. b4 {[%clk 0:00:01]}  Bxb4 {[%clk 0:00:10]} 44. a4 {[%clk 0:00:02]}  bxa4 {[%clk 0:00:10]} 45. h4 {[%clk 0:00:02]}  a3 {[%clk 0:00:10]} 46. Kd3 {[%clk 0:00:03]}  a2 {[%clk 0:00:10]} 47. Kc4 {[%clk 0:00:04]}  Be7 {[%clk 0:00:10]} 48. Kb3 {[%clk 0:00:04]}  a1=Q {[%clk 0:00:10]} 49. Kc4 {[%clk 0:00:05]}  Qd4+ {[%clk 0:00:09]} 50. Kb3 {[%clk 0:00:05]}  Bd5+ {[%clk 0:00:10]} 51. Kc2 {[%clk 0:00:06]}  Ne3+ {[%clk 0:00:10]} 52. Kc1 {[%clk 0:00:06]}  Qc3+ {[%clk 0:00:09]} 53. Kb1 {[%clk 0:00:07]}  Qc2+ {[%clk 0:00:09]} 54. Ka1 {[%clk 0:00:07]}  Bf6# {[%clk 0:00:10]} 0-1


[Site "https://www.chess.com"]

[Event "Titled Tuesday Blitz November 07 Late 2023"]
[White "Goltsev, Dmitry"]
[Black "Sturt, Raven"]
[WhiteFideId "24176710"]
[BlackFideId "2007304"]
[WhiteElo "2741"]
[BlackElo "2610"]
[Result "0-1"]
[Round "9"]
[TimeControl "180+1"]
[Date "2023.11.07"]
[WhiteClock "0:00:00"]
[BlackClock "0:01:02"]
[Board "29"]

1. e4 {[%clk 0:03:00]}  e5 {[%clk 0:03:00]} 2. Nf3 {[%clk 0:03:00]}  Nc6 {[%clk 0:03:00]} 3. Bb5 {[%clk 0:03:01]}  f5 {[%clk 0:03:00]} 4. d4 {[%clk 0:03:01]}  fxe4 {[%clk 0:02:59]} 5. Bxc6 {[%clk 0:03:01]}  dxc6 {[%clk 0:02:57]} 6. Nxe5 {[%clk 0:03:02]}  Nf6 {[%clk 0:02:57]} 7. O-O {[%clk 0:03:02]}  Bd6 {[%clk 0:02:56]} 8. Nc3 {[%clk 0:03:02]}  O-O {[%clk 0:02:56]} 9. Qe2 {[%clk 0:03:02]}  c5 {[%clk 0:02:43]} 10. Be3 {[%clk 0:02:12]}  cxd4 {[%clk 0:02:42]} 11. Bxd4 {[%clk 0:02:11]}  c5 {[%clk 0:02:32]} 12. Qc4+ {[%clk 0:02:10]}  Kh8 {[%clk 0:02:32]} 13. Bxc5 {[%clk 0:01:59]}  Bxe5 {[%clk 0:02:32]} 14. Rad1 {[%clk 0:01:57]}  Qc7 {[%clk 0:02:02]} 15. Nb5 {[%clk 0:01:15]}  Qc6 {[%clk 0:02:01]} 16. b3 {[%clk 0:01:06]}  Be6 {[%clk 0:01:57]} 17. Qb4 {[%clk 0:01:02]}  a5 {[%clk 0:01:57]} 18. Qa3 {[%clk 0:01:01]}  Rfc8 {[%clk 0:01:46]} 19. Nd4 {[%clk 0:01:01]}  Qxc5 {[%clk 0:01:46]} 20. Qxc5 {[%clk 0:01:00]}  Rxc5 {[%clk 0:01:46]} 21. Nxe6 {[%clk 0:01:01]}  Rxc2 {[%clk 0:01:46]} 22. a4 {[%clk 0:00:59]}  h6 {[%clk 0:01:43]} 23. h3 {[%clk 0:00:51]}  Rb2 {[%clk 0:01:41]} 24. Nd8 {[%clk 0:00:47]}  Kh7 {[%clk 0:01:36]} 25. Nxb7 {[%clk 0:00:45]}  Rxb3 {[%clk 0:01:35]} 26. Nc5 {[%clk 0:00:45]}  Rb4 {[%clk 0:01:33]} 27. Rfe1 {[%clk 0:00:44]}  Rc8 {[%clk 0:01:28]} 28. Ne6 {[%clk 0:00:37]}  Rxa4 {[%clk 0:01:27]} 29. f4 {[%clk 0:00:35]}  Bc3 {[%clk 0:01:26]} 30. Re3 {[%clk 0:00:33]}  Rac4 {[%clk 0:01:22]} 31. f5 {[%clk 0:00:30]}  a4 {[%clk 0:01:21]} 32. g4 {[%clk 0:00:28]}  a3 {[%clk 0:01:20]} 33. g5 {[%clk 0:00:26]}  hxg5 {[%clk 0:01:20]} 34. Nxg5+ {[%clk 0:00:27]}  Kg8 {[%clk 0:01:20]} 35. Re2 {[%clk 0:00:25]}  Bd4+ {[%clk 0:01:16]} 36. Kg2 {[%clk 0:00:20]}  Bb2 {[%clk 0:01:13]} 37. Red2 {[%clk 0:00:18]}  Re8 {[%clk 0:01:09]} 38. Ne6 {[%clk 0:00:13]}  e3 {[%clk 0:01:06]} 39. Re2 {[%clk 0:00:12]}  Rc1 {[%clk 0:01:06]} 40. Rd3 {[%clk 0:00:11]}  a2 {[%clk 0:01:05]} 41. Rdxe3 {[%clk 0:00:05]}  a1=Q {[%clk 0:01:05]} 42. Rg3 {[%clk 0:00:06]}  Rg1+ {[%clk 0:01:05]} 43. Kf2 {[%clk 0:00:04]}  Bd4+ {[%clk 0:01:02]} 44. Kf3 {[%clk 0:00:00]}  Qf1+ {[%clk 0:01:02]} 0-1


[Site "https://www.chess.com"]

[Event "Titled Tuesday Blitz November 07 Late 2023"]
[White "Gontcharov, Vladislav"]
[Black "MKlose11"]
[WhiteFideId "4123492"]
[WhiteElo "2594"]
[BlackElo "2714"]
[Result "1-0"]
[Round "9"]
[TimeControl "180+1"]
[Date "2023.11.07"]
[WhiteClock "0:01:33"]
[BlackClock "0:00:07"]
[Board "32"]

1. d4 {[%clk 0:03:00]}  Nf6 {[%clk 0:02:20]} 2. c4 {[%clk 0:02:59]}  c5 {[%clk 0:02:18]} 3. Nf3 {[%clk 0:02:56]}  cxd4 {[%clk 0:02:17]} 4. Nxd4 {[%clk 0:02:56]}  Nc6 {[%clk 0:02:18]} 5. Nc3 {[%clk 0:02:55]}  d6 {[%clk 0:02:13]} 6. e4 {[%clk 0:02:49]}  g6 {[%clk 0:02:12]} 7. Be3 {[%clk 0:02:48]}  Bg7 {[%clk 0:02:12]} 8. Be2 {[%clk 0:02:47]}  Ng4 {[%clk 0:02:06]} 9. Bxg4 {[%clk 0:02:46]}  Bxg4 {[%clk 0:02:00]} 10. Nxc6 {[%clk 0:02:43]}  Bxd1 {[%clk 0:01:48]} 11. Nxd8 {[%clk 0:02:43]}  Bg4 {[%clk 0:01:29]} 12. Nxb7 {[%clk 0:02:40]}  Rb8 {[%clk 0:01:29]} 13. Na5 {[%clk 0:02:40]}  Rxb2 {[%clk 0:01:29]} 14. Rc1 {[%clk 0:02:38]}  O-O {[%clk 0:01:18]} 15. O-O {[%clk 0:02:35]}  Rc8 {[%clk 0:01:18]} 16. f3 {[%clk 0:02:20]}  Be6 {[%clk 0:01:17]} 17. Nd5 {[%clk 0:02:16]}  Kf8 {[%clk 0:01:13]} 18. Rf2 {[%clk 0:02:09]}  Rcb8 {[%clk 0:01:07]} 19. Nb3 {[%clk 0:02:04]}  a5 {[%clk 0:00:42]} 20. Rxb2 {[%clk 0:02:00]}  Bxb2 {[%clk 0:00:42]} 21. Rc2 {[%clk 0:02:00]}  Bg7 {[%clk 0:00:37]} 22. Nxa5 {[%clk 0:02:00]}  Rb1+ {[%clk 0:00:34]} 23. Kf2 {[%clk 0:01:59]}  f5 {[%clk 0:00:34]} 24. Nc6 {[%clk 0:01:41]}  fxe4 {[%clk 0:00:33]} 25. fxe4 {[%clk 0:01:41]}  Kf7 {[%clk 0:00:17]} 26. Ncxe7 {[%clk 0:01:37]}  Be5 {[%clk 0:00:16]} 27. h3 {[%clk 0:01:36]}  h5 {[%clk 0:00:15]} 28. Nc6 {[%clk 0:01:35]}  Bh2 {[%clk 0:00:15]} 29. Nd4 {[%clk 0:01:33]}  Bd7 {[%clk 0:00:07]} 30. Nf3 {[%clk 0:01:33]} 1-0


[Site "https://www.chess.com"]

[Event "Titled Tuesday Blitz November 07 Late 2023"]
[White "Zeltsan, Joseph"]
[Black "Jaskolka, Tomasz"]
[WhiteFideId "30932980"]
[BlackFideId "1170791"]
[WhiteElo "2691"]
[BlackElo "2584"]
[Result "1-0"]
[Round "9"]
[TimeControl "180+1"]
[Date "2023.11.07"]
[WhiteClock "0:00:35"]
[BlackClock "0:00:05"]
[Board "34"]

1. e4 {[%clk 0:03:00]}  d5 {[%clk 0:02:59]} 2. exd5 {[%clk 0:03:00]}  Nf6 {[%clk 0:03:00]} 3. Nf3 {[%clk 0:03:00]}  Bg4 {[%clk 0:02:57]} 4. Be2 {[%clk 0:03:00]}  Nxd5 {[%clk 0:02:51]} 5. d4 {[%clk 0:02:58]}  e6 {[%clk 0:02:50]} 6. O-O {[%clk 0:02:58]}  Nd7 {[%clk 0:02:44]} 7. c4 {[%clk 0:02:58]}  N5f6 {[%clk 0:02:44]} 8. Nc3 {[%clk 0:02:56]}  Be7 {[%clk 0:02:44]} 9. Re1 {[%clk 0:02:55]}  O-O {[%clk 0:02:44]} 10. h3 {[%clk 0:02:56]}  Bh5 {[%clk 0:02:44]} 11. Bf4 {[%clk 0:02:50]}  c6 {[%clk 0:02:44]} 12. Qb3 {[%clk 0:02:38]}  Qb6 {[%clk 0:02:42]} 13. Qc2 {[%clk 0:02:37]}  Bg6 {[%clk 0:02:39]} 14. Bd3 {[%clk 0:02:37]}  Bxd3 {[%clk 0:02:34]} 15. Qxd3 {[%clk 0:02:38]}  Rad8 {[%clk 0:02:33]} 16. Qe2 {[%clk 0:02:37]}  Bb4 {[%clk 0:02:28]} 17. Bd2 {[%clk 0:02:36]}  Rfe8 {[%clk 0:02:18]} 18. a3 {[%clk 0:02:36]}  Bxc3 {[%clk 0:02:18]} 19. Bxc3 {[%clk 0:02:37]}  Qa6 {[%clk 0:02:02]} 20. a4 {[%clk 0:02:33]}  c5 {[%clk 0:01:41]} 21. dxc5 {[%clk 0:02:30]}  Nxc5 {[%clk 0:01:41]} 22. Bxf6 {[%clk 0:02:29]}  gxf6 {[%clk 0:01:42]} 23. b4 {[%clk 0:02:26]}  Nd3 {[%clk 0:01:38]} 24. b5 {[%clk 0:02:01]}  Qa5 {[%clk 0:01:29]} 25. Red1 {[%clk 0:01:58]}  Nc5 {[%clk 0:01:29]} 26. Rxd8 {[%clk 0:01:47]}  Rxd8 {[%clk 0:01:24]} 27. Qe3 {[%clk 0:01:47]}  Qc7 {[%clk 0:01:20]} 28. a5 {[%clk 0:01:43]}  b6 {[%clk 0:01:01]} 29. axb6 {[%clk 0:01:42]}  axb6 {[%clk 0:01:02]} 30. Nd4 {[%clk 0:01:39]}  Qd6 {[%clk 0:00:22]} 31. Nc6 {[%clk 0:01:37]}  Rc8 {[%clk 0:00:22]} 32. Ra7 {[%clk 0:01:26]}  Qd1+ {[%clk 0:00:18]} 33. Kh2 {[%clk 0:01:26]}  Qd6+ {[%clk 0:00:18]} 34. g3 {[%clk 0:01:20]}  Rc7 {[%clk 0:00:16]} 35. Ra8+ {[%clk 0:01:16]}  Kg7 {[%clk 0:00:16]} 36. Rd8 {[%clk 0:01:16]}  Rd7 {[%clk 0:00:14]} 37. Rb8 {[%clk 0:01:10]}  Qd2 {[%clk 0:00:13]} 38. Qf3 {[%clk 0:01:06]}  f5 {[%clk 0:00:13]} 39. Ne5 {[%clk 0:00:59]}  Rd4 {[%clk 0:00:10]} 40. Rxb6 {[%clk 0:00:52]}  Qe1 {[%clk 0:00:10]} 41. Qe3 {[%clk 0:00:47]}  Qxe3 {[%clk 0:00:06]} 42. fxe3 {[%clk 0:00:48]}  Re4 {[%clk 0:00:06]} 43. Rc6 {[%clk 0:00:35]}  Rxe5 {[%clk 0:00:05]} 44. b6 {[%clk 0:00:36]}  Na6 {[%clk 0:00:02]} 45. b7 {[%clk 0:00:33]}  Nb8 {[%clk 0:00:01]} 46. Rc8 {[%clk 0:00:34]}  Na6 {[%clk 0:00:02]} 47. c5 {[%clk 0:00:34]}  Rxe3 {[%clk 0:00:01]} 48. c6 {[%clk 0:00:35]}  Re2+ {[%clk 0:00:02]} 49. Kg1 {[%clk 0:00:35]}  Rb2 {[%clk 0:00:02]} 50. Ra8 {[%clk 0:00:34]}  Rb6 {[%clk 0:00:01]} 51. Rxa6 {[%clk 0:00:34]}  Rxa6 {[%clk 0:00:02]} 52. c7 {[%clk 0:00:34]}  Ra1+ {[%clk 0:00:02]} 53. Kf2 {[%clk 0:00:34]}  Ra2+ {[%clk 0:00:02]} 54. Ke3 {[%clk 0:00:35]}  Ra3+ {[%clk 0:00:03]} 55. Kd4 {[%clk 0:00:35]}  Ra4+ {[%clk 0:00:03]} 56. Kc5 {[%clk 0:00:36]}  Ra3 {[%clk 0:00:04]} 57. c8=Q {[%clk 0:00:35]}  Rxg3 {[%clk 0:00:05]} 58. b8=Q {[%clk 0:00:36]}  Rxh3 {[%clk 0:00:05]} 59. Qh8+ {[%clk 0:00:35]}  Kh6 {[%clk 0:00:05]} 60. Qbf8+ {[%clk 0:00:35]}  Kg5 {[%clk 0:00:06]} 61. Qfg7+ {[%clk 0:00:35]}  Kf4 {[%clk 0:00:06]} 62. Qd4+ {[%clk 0:00:35]}  Kg5 {[%clk 0:00:06]} 63. Qhf6+ {[%clk 0:00:35]}  Kh5 {[%clk 0:00:07]} 64. Qxf7+ {[%clk 0:00:36]}  Kg5 {[%clk 0:00:07]} 65. Qfg7+ {[%clk 0:00:35]}  Kh5 {[%clk 0:00:07]} 66. Qd1+ {[%clk 0:00:34]}  Kh4 {[%clk 0:00:06]} 67. Qe1+ {[%clk 0:00:35]}  Kh5 {[%clk 0:00:06]} 68. Qd2 {[%clk 0:00:35]}  f4 {[%clk 0:00:04]} 69. Qe2+ {[%clk 0:00:34]}  f3 {[%clk 0:00:05]} 70. Qee5+ {[%clk 0:00:34]}  Kh4 {[%clk 0:00:05]} 71. Qeg5# {[%clk 0:00:35]} 1-0


[Site "https://www.chess.com"]